Workbook

Sheet WPS Quote
B13: 2026 Short Term Health Plan Quote
C18: Applicant Name: | G18: Policy Type: | J18: ACH Billing Discount:
C20: Effective Date: | G20: =IF(H18='WPS Benefits and Selection'!B23,"","Applicant Date of Birth: ") ->  | J20: =IF(OR(H18='WPS Benefits and Selection'!B25,H18='WPS Benefits and Selection'!B27),"Spouse Date of Birth: ","") -> 
C22: Term Date: | G22: =IF(H18='WPS Benefits and Selection'!B23,"","Applicant Gender: ") ->  | J22: =IF(OR(H18='WPS Benefits and Selection'!B25,H18='WPS Benefits and Selection'!B27),"Spouse Gender: ","") -> 
C24: County: | G24: =IF(OR(H18='WPS Benefits and Selection'!B26,H18='WPS Benefits and Selection'!B27),"# of Dependents: ","") -> 
B28: Medical Plan Name (select plan name for brochure) | E28: Medical Deductible | G28: Medical Coinsurance | I28: Medical Out-of Pocket Limit | K28: Drug Deductible | L28: Monthly Rate
E29: In-Network | F29: Out-Network | G29: In-Network | H29: Out-Network | I29: In-Network | J29: Out-Network | K29: Individual/Family
E30: Individual/Family | F30: Individual/Family | I30: Individual/Family | J30: Individual/Family
B32: =HYPERLINK('WPS Benefits and Selection'!V5,'WPS Benefits and Selection'!B5) -> WPS Short Term Health Plan 1500 25% | E32: ="$"&'WPS Benefits and Selection'!C5&"/$"&'WPS Benefits and Selection'!D5 -> $1500/$4500 | F32: ="$"&'WPS Benefits and Selection'!E5&"/$"&'WPS Benefits and Selection'!F5 -> $3000/$9000 | G32: ='WPS Benefits and Selection'!G5 -> 0.25 | H32: ='WPS Benefits and Selection'!H5 -> 0.5 | I32: ="$"&'WPS Benefits and Selection'!I5&"/$"&'WPS Benefits and Selection'!J5 -> $4000/$12000 | J32: ="$"&'WPS Benefits and Selection'!K5&"/$"&'WPS Benefits and Selection'!L5 -> $8000/$24000 | K32: ="$"&'WPS Benefits and Selection'!M5&"/$"&'WPS Benefits and Selection'!N5 -> $500/$1500 | L32: =Calculations!AM16 -> 0
B34: =HYPERLINK('WPS Benefits and Selection'!V6,'WPS Benefits and Selection'!B6) -> WPS Short Term Health Plan 2500 0% | E34: ="$"&'WPS Benefits and Selection'!C6&"/$"&'WPS Benefits and Selection'!D6 -> $2500/$7500 | F34: ="$"&'WPS Benefits and Selection'!E6&"/$"&'WPS Benefits and Selection'!F6 -> $5000/$15000 | G34: ='WPS Benefits and Selection'!G6 -> 0 | H34: ='WPS Benefits and Selection'!H6 -> 0.5 | I34: ="$"&'WPS Benefits and Selection'!I6&"/$"&'WPS Benefits and Selection'!J6 -> $2500/$7500 | J34: ="$"&'WPS Benefits and Selection'!K6&"/$"&'WPS Benefits and Selection'!L6 -> $10000/$30000 | K34: ="$"&'WPS Benefits and Selection'!M6&"/$"&'WPS Benefits and Selection'!N6 -> $500/$1500 | L34: =Calculations!AN16 -> 0
B36: =HYPERLINK('WPS Benefits and Selection'!V7,'WPS Benefits and Selection'!B7) -> WPS Short Term Health Plan 2500 25% | E36: ="$"&'WPS Benefits and Selection'!C7&"/$"&'WPS Benefits and Selection'!D7 -> $2500/$7500 | F36: ="$"&'WPS Benefits and Selection'!E7&"/$"&'WPS Benefits and Selection'!F7 -> $5000/$15000 | G36: ='WPS Benefits and Selection'!G7 -> 0.25 | H36: ='WPS Benefits and Selection'!H7 -> 0.5 | I36: ="$"&'WPS Benefits and Selection'!I7&"/$"&'WPS Benefits and Selection'!J7 -> $5000/$15000 | J36: ="$"&'WPS Benefits and Selection'!K7&"/$"&'WPS Benefits and Selection'!L7 -> $10000/$30000 | K36: ="$"&'WPS Benefits and Selection'!M7&"/$"&'WPS Benefits and Selection'!N7 -> $500/$1500 | L36: =Calculations!AO16 -> 0
B38: =HYPERLINK('WPS Benefits and Selection'!V8,'WPS Benefits and Selection'!B8) -> WPS Short Term Health Plan 5000 0% | E38: ="$"&'WPS Benefits and Selection'!C8&"/$"&'WPS Benefits and Selection'!D8 -> $5000/$15000 | F38: ="$"&'WPS Benefits and Selection'!E8&"/$"&'WPS Benefits and Selection'!F8 -> $10000/$30000 | G38: ='WPS Benefits and Selection'!G8 -> 0 | H38: ='WPS Benefits and Selection'!H8 -> 0.5 | I38: ="$"&'WPS Benefits and Selection'!I8&"/$"&'WPS Benefits and Selection'!J8 -> $5000/$15000 | J38: ="$"&'WPS Benefits and Selection'!K8&"/$"&'WPS Benefits and Selection'!L8 -> $15000/$45000 | K38: ="$"&'WPS Benefits and Selection'!M8&"/$"&'WPS Benefits and Selection'!N8 -> $500/$1500 | L38: =Calculations!AP16 -> 0
B40: =HYPERLINK('WPS Benefits and Selection'!V9,'WPS Benefits and Selection'!B9) -> WPS Short Term Health Plan 5000 25% | E40: ="$"&'WPS Benefits and Selection'!C9&"/$"&'WPS Benefits and Selection'!D9 -> $5000/$15000 | F40: ="$"&'WPS Benefits and Selection'!E9&"/$"&'WPS Benefits and Selection'!F9 -> $10000/$30000 | G40: ='WPS Benefits and Selection'!G9 -> 0.25 | H40: ='WPS Benefits and Selection'!H9 -> 0.5 | I40: ="$"&'WPS Benefits and Selection'!I9&"/$"&'WPS Benefits and Selection'!J9 -> $7500/$22500 | J40: ="$"&'WPS Benefits and Selection'!K9&"/$"&'WPS Benefits and Selection'!L9 -> $15000/$45000 | K40: ="$"&'WPS Benefits and Selection'!M9&"/$"&'WPS Benefits and Selection'!N9 -> $500/$1500 | L40: =Calculations!AQ16 -> 0
B42: =HYPERLINK('WPS Benefits and Selection'!V10,'WPS Benefits and Selection'!B10) -> WPS Short Term Health Plan 7500 0% | E42: ="$"&'WPS Benefits and Selection'!C10&"/$"&'WPS Benefits and Selection'!D10 -> $7500/$22500 | F42: ="$"&'WPS Benefits and Selection'!E10&"/$"&'WPS Benefits and Selection'!F10 -> $15000/$45000 | G42: ='WPS Benefits and Selection'!G10 -> 0 | H42: ='WPS Benefits and Selection'!H10 -> 0.5 | I42: ="$"&'WPS Benefits and Selection'!I10&"/$"&'WPS Benefits and Selection'!J10 -> $7500/$22500 | J42: ="$"&'WPS Benefits and Selection'!K10&"/$"&'WPS Benefits and Selection'!L10 -> $20000/$60000 | K42: ="$"&'WPS Benefits and Selection'!M10&"/$"&'WPS Benefits and Selection'!N10 -> $500/$1500 | L42: =Calculations!AR16 -> 0
B44: =HYPERLINK('WPS Benefits and Selection'!V11,'WPS Benefits and Selection'!B11) -> WPS Short Term Health Plan 7500 25% | E44: ="$"&'WPS Benefits and Selection'!C11&"/$"&'WPS Benefits and Selection'!D11 -> $7500/$22500 | F44: ="$"&'WPS Benefits and Selection'!E11&"/$"&'WPS Benefits and Selection'!F11 -> $15000/$45000 | G44: ='WPS Benefits and Selection'!G11 -> 0.25 | H44: ='WPS Benefits and Selection'!H11 -> 0.5 | I44: ="$"&'WPS Benefits and Selection'!I11&"/$"&'WPS Benefits and Selection'!J11 -> $10000/$30000 | J44: ="$"&'WPS Benefits and Selection'!K11&"/$"&'WPS Benefits and Selection'!L11 -> $20000/$60000 | K44: ="$"&'WPS Benefits and Selection'!M11&"/$"&'WPS Benefits and Selection'!N11 -> $500/$1500 | L44: =Calculations!AS16 -> 0
B46: =HYPERLINK('WPS Benefits and Selection'!V12,'WPS Benefits and Selection'!B12) -> WPS Short Term Health Plan 10000 0% | E46: ="$"&'WPS Benefits and Selection'!C12&"/$"&'WPS Benefits and Selection'!D12 -> $10000/$30000 | F46: ="$"&'WPS Benefits and Selection'!E12&"/$"&'WPS Benefits and Selection'!F12 -> $20000/$60000 | G46: ='WPS Benefits and Selection'!G12 -> 0 | H46: ='WPS Benefits and Selection'!H12 -> 0.5 | I46: ="$"&'WPS Benefits and Selection'!I12&"/$"&'WPS Benefits and Selection'!J12 -> $10000/$30000 | J46: ="$"&'WPS Benefits and Selection'!K12&"/$"&'WPS Benefits and Selection'!L12 -> $25000/$75000 | K46: ="$"&'WPS Benefits and Selection'!M12&"/$"&'WPS Benefits and Selection'!N12 -> $500/$1500 | L46: =Calculations!AT16 -> 0
B48: =HYPERLINK('WPS Benefits and Selection'!V13,'WPS Benefits and Selection'!B13) -> WPS Short Term Health Plan 10000 25% | E48: ="$"&'WPS Benefits and Selection'!C13&"/$"&'WPS Benefits and Selection'!D13 -> $10000/$30000 | F48: ="$"&'WPS Benefits and Selection'!E13&"/$"&'WPS Benefits and Selection'!F13 -> $20000/$60000 | G48: ='WPS Benefits and Selection'!G13 -> 0.25 | H48: ='WPS Benefits and Selection'!H13 -> 0.5 | I48: ="$"&'WPS Benefits and Selection'!I13&"/$"&'WPS Benefits and Selection'!J13 -> $12500/$37500 | J48: ="$"&'WPS Benefits and Selection'!K13&"/$"&'WPS Benefits and Selection'!L13 -> $25000/$75000 | K48: ="$"&'WPS Benefits and Selection'!M13&"/$"&'WPS Benefits and Selection'!N13 -> $500/$1500 | L48: =Calculations!AU16 -> 0
B50: =HYPERLINK('WPS Benefits and Selection'!V14,'WPS Benefits and Selection'!B14) -> WPS Short Term Health Plan 15000 25% | E50: ="$"&'WPS Benefits and Selection'!C14&"/$"&'WPS Benefits and Selection'!D14 -> $15000/$45000 | F50: ="$"&'WPS Benefits and Selection'!E14&"/$"&'WPS Benefits and Selection'!F14 -> $30000/$90000 | G50: ='WPS Benefits and Selection'!G14 -> 0.25 | H50: ='WPS Benefits and Selection'!H14 -> 0.5 | I50: ="$"&'WPS Benefits and Selection'!I14&"/$"&'WPS Benefits and Selection'!J14 -> $17500/$52500 | J50: ="$"&'WPS Benefits and Selection'!K14&"/$"&'WPS Benefits and Selection'!L14 -> $35000/$105000 | K50: ="$"&'WPS Benefits and Selection'!M14&"/$"&'WPS Benefits and Selection'!N14 -> $500/$1500 | L50: =Calculations!AV16 -> 0
B53: Premium estimates are based on the information you have provided. Actual rates will be based on the information provided in your signed application.

Sheet WPS Benefits and Selection (hidden)
A2: 1-1-2026 Plans & Benefits Template - Short Term Plans
A4: HIOS Plan ID | B4: Plan Marketing Name | C4: Single Medical Deductible In-Net | D4: Family Medical Deductible In-Net | E4: Single Medical Deductible Out-Net | F4: Family Medical Deductible Out-Net | G4: Medical Coinsurance In-Net | H4: Medical Coinsurance Out-Net | I4: Single Medical Max OOP In-Net | J4: Family Medical Max OOP In-Net | K4: Single Medical Max OOP Out-Net | L4: Family Medical Max OOP Out-Net | M4: Single Drug Deductible | N4: Family Drug Deductible | O4: Medical Maximum Benefit | P4: Drug Maximum Benefit | Q4: Doctor Office Visit | R4: Urgent Care Visit | S4: Emergency Room | T4: Teladoc | U4: SBC URL | V4: Brochure URL | W4: Plan Effective Date | X4: Plan Expiration Date
A5: 81974ST0000001 | B5: WPS Short Term Health Plan 1500 25% | C5: 1500 | D5: =C5*3 -> 4500 | E5: =C5*2 -> 3000 | F5: =E5*3 -> 9000 | G5: 0.25 | H5: 0.5 | I5: =C5 + 10000*G5 -> 4000 | J5: =I5*3 -> 12000 | K5: =E5 + 10000*H5 -> 8000 | L5: =K5*3 -> 24000 | M5: 500 | N5: =M5*3 -> 1500 | O5: $1,000,000 per covered person | P5: $3,000 per covered person | Q5: Subject to Deductible and Coinsurance | R5: Subject to Deductible and Coinsurance | S5: $350 Copay, then subject to Deductible and Coinsurance | T5: $55 Copay | U5: N/A | V5: https://secure.wpsic.com/sales-materials/files/33544_2026-wps-short-term-insurance-plan-brochure.pdf | W5: 2026-01-01 | X5: 2026-12-31
A6: 81974ST0000006 | B6: WPS Short Term Health Plan 2500 0% | C6: 2500 | D6: =C6*3 -> 7500 | E6: =C6*2 -> 5000 | F6: =E6*3 -> 15000 | G6: 0 | H6: 0.5 | I6: =C6 + 10000*G6 -> 2500 | J6: =I6*3 -> 7500 | K6: =E6 + 10000*H6 -> 10000 | L6: 30000 | M6: 500 | N6: =M6*3 -> 1500 | O6: $1,000,000 per covered person | P6: $3,000 per covered person | Q6: Subject to Deductible and Coinsurance | R6: Subject to Deductible and Coinsurance | S6: $350 Copay, then subject to Deductible and Coinsurance | T6: $55 Copay | U6: N/A | V6: https://secure.wpsic.com/sales-materials/files/33544_2026-wps-short-term-insurance-plan-brochure.pdf | W6: 2026-01-01 | X6: 2026-12-31
A7: 81974ST0000002 | B7: WPS Short Term Health Plan 2500 25% | C7: 2500 | D7: 7500 | E7: 5000 | F7: 15000 | G7: 0.25 | H7: 0.5 | I7: 5000 | J7: 15000 | K7: 10000 | L7: 30000 | M7: 500 | N7: 1500 | O7: $1,000,000 per covered person | P7: $3,000 per covered person | Q7: Subject to Deductible and Coinsurance | R7: Subject to Deductible and Coinsurance | S7: $350 Copay, then subject to Deductible and Coinsurance | T7: $55 Copay | U7: N/A | V7: https://secure.wpsic.com/sales-materials/files/33544_2026-wps-short-term-insurance-plan-brochure.pdf | W7: 2026-01-01 | X7: 2026-12-31
A8: 81974ST0000007 | B8: WPS Short Term Health Plan 5000 0% | C8: 5000 | D8: 15000 | E8: 10000 | F8: 30000 | G8: 0 | H8: 0.5 | I8: 5000 | J8: 15000 | K8: 15000 | L8: 45000 | M8: 500 | N8: 1500 | O8: $1,000,000 per covered person | P8: $3,000 per covered person | Q8: Subject to Deductible and Coinsurance | R8: Subject to Deductible and Coinsurance | S8: $350 Copay, then subject to Deductible and Coinsurance | T8: $55 Copay | U8: N/A | V8: https://secure.wpsic.com/sales-materials/files/33544_2026-wps-short-term-insurance-plan-brochure.pdf | W8: 2026-01-01 | X8: 2026-12-31
A9: 81974ST0000003 | B9: WPS Short Term Health Plan 5000 25% | C9: 5000 | D9: 15000 | E9: 10000 | F9: 30000 | G9: 0.25 | H9: 0.5 | I9: 7500 | J9: 22500 | K9: 15000 | L9: 45000 | M9: 500 | N9: 1500 | O9: $1,000,000 per covered person | P9: $3,000 per covered person | Q9: Subject to Deductible and Coinsurance | R9: Subject to Deductible and Coinsurance | S9: $350 Copay, then subject to Deductible and Coinsurance | T9: $55 Copay | U9: N/A | V9: https://secure.wpsic.com/sales-materials/files/33544_2026-wps-short-term-insurance-plan-brochure.pdf | W9: 2026-01-01 | X9: 2026-12-31
A10: 81974ST0000009 | B10: WPS Short Term Health Plan 7500 0% | C10: 7500 | D10: 22500 | E10: 15000 | F10: 45000 | G10: 0 | H10: 0.5 | I10: 7500 | J10: 22500 | K10: 20000 | L10: 60000 | M10: 500 | N10: =M10*3 -> 1500 | O10: $1,000,000 per covered person | P10: $3,000 per covered person | Q10: Subject to Deductible and Coinsurance | R10: Subject to Deductible and Coinsurance | S10: $350 Copay, then subject to Deductible and Coinsurance | T10: $55 Copay | U10: N/A | V10: https://secure.wpsic.com/sales-materials/files/33544_2026-wps-short-term-insurance-plan-brochure.pdf | W10: 2026-01-01 | X10: 2026-12-31
A11: 81974ST0000010 | B11: WPS Short Term Health Plan 7500 25% | C11: 7500 | D11: 22500 | E11: 15000 | F11: 45000 | G11: 0.25 | H11: 0.5 | I11: 10000 | J11: 30000 | K11: 20000 | L11: 60000 | M11: 500 | N11: 1500 | O11: $1,000,000 per covered person | P11: $3,000 per covered person | Q11: Subject to Deductible and Coinsurance | R11: Subject to Deductible and Coinsurance | S11: $350 Copay, then subject to Deductible and Coinsurance | T11: $55 Copay | U11: N/A | V11: https://secure.wpsic.com/sales-materials/files/33544_2026-wps-short-term-insurance-plan-brochure.pdf | W11: 2026-01-01 | X11: 2026-12-31
A12: 81974ST0000008 | B12: WPS Short Term Health Plan 10000 0% | C12: 10000 | D12: 30000 | E12: 20000 | F12: 60000 | G12: 0 | H12: 0.5 | I12: 10000 | J12: 30000 | K12: 25000 | L12: 75000 | M12: 500 | N12: 1500 | O12: $1,000,000 per covered person | P12: $3,000 per covered person | Q12: Subject to Deductible and Coinsurance | R12: Subject to Deductible and Coinsurance | S12: $350 Copay, then subject to Deductible and Coinsurance | T12: $55 Copay | U12: N/A | V12: https://secure.wpsic.com/sales-materials/files/33544_2026-wps-short-term-insurance-plan-brochure.pdf | W12: 2026-01-01 | X12: 2026-12-31
A13: 81974ST0000004 | B13: WPS Short Term Health Plan 10000 25% | C13: 10000 | D13: 30000 | E13: 20000 | F13: 60000 | G13: 0.25 | H13: 0.5 | I13: 12500 | J13: 37500 | K13: 25000 | L13: 75000 | M13: 500 | N13: 1500 | O13: $1,000,000 per covered person | P13: $3,000 per covered person | Q13: Subject to Deductible and Coinsurance | R13: Subject to Deductible and Coinsurance | S13: $350 Copay, then subject to Deductible and Coinsurance | T13: $55 Copay | U13: N/A | V13: https://secure.wpsic.com/sales-materials/files/33544_2026-wps-short-term-insurance-plan-brochure.pdf | W13: 2026-01-01 | X13: 2026-12-31
A14: 81974ST0000005 | B14: WPS Short Term Health Plan 15000 25% | C14: 15000 | D14: 45000 | E14: 30000 | F14: 90000 | G14: 0.25 | H14: 0.5 | I14: 17500 | J14: 52500 | K14: 35000 | L14: 105000 | M14: 500 | N14: 1500 | O14: $1,000,000 per covered person | P14: $3,000 per covered person | Q14: Subject to Deductible and Coinsurance | R14: Subject to Deductible and Coinsurance | S14: $350 Copay, then subject to Deductible and Coinsurance | T14: $55 Copay | U14: N/A | V14: https://secure.wpsic.com/sales-materials/files/33544_2026-wps-short-term-insurance-plan-brochure.pdf | W14: 2026-01-01 | X14: 2026-12-31
A17: County Select | B17: Gender Select
A19: Adams | B19: Male
A20: Ashland | B20: Female
A21: Barron
A22: Bayfield | B22: Policy Type Select
A23: Brown
A24: Buffalo | B24: Applicant Only
A25: Burnett | B25: Applicant & Spouse
A26: Calumet | B26: Applicant & Dependents
A27: Chippewa | B27: Family
A28: Clark | H28: List of February 29ths | I28: Year Type | J28: Is in Date Range?
A29: Columbia | F29: Effective Date | G29: ='WPS Quote'!D20 -> 00:00:00 | H29: 2020-02-29 | I29: =IF(OR(MOD(YEAR(H29),400)=0,AND(MOD(YEAR(H29),4)=0,MOD(YEAR(H29),100)<>0)),"Leap", "Standard") -> Leap | J29: =IF(AND(H29<=$G$30,H29>=$G$29),"Yes","No") -> No
A30: Crawford | F30: Date +365 | G30: =G29+365 -> 1900-12-30 | H30: 2024-02-29 | I30: =IF(OR(MOD(YEAR(H30),400)=0,AND(MOD(YEAR(H30),4)=0,MOD(YEAR(H30),100)<>0)),"Leap", "Standard") -> Leap | J30: =IF(AND(H30<=$G$30,H30>=$G$29),"Yes","No") -> No
A31: Dane | B31: Dependents | F31: Feb. 29 In Range? | G31: =IF(OR(J29="Yes",J30="Yes",J31="Yes",J32="Yes",J33="Yes",J34="Yes",J35="Yes",J36="Yes"),"Yes","No") -> No | H31: 2028-02-29 | I31: Leap | J31: No
A32: Dodge | F32: Term Min Date | G32: =G29+27 -> 1900-01-27 | H32: 2032-02-29 | I32: Leap | J32: No
A33: Door | B33: 0 | F33: Term Max Date | G33: =IF(G31="Yes",G29+365,G29+364) -> 1900-12-29 | H33: 2036-02-29 | I33: Leap | J33: No
A34: Douglas | B34: 1 | H34: 2040-02-29 | I34: Leap | J34: No
A35: Dunn | B35: 2 | H35: 2044-02-29 | I35: Leap | J35: No
A36: Eau Claire | B36: 3 | H36: 2048-02-29 | I36: Leap | J36: No
A37: Florence | B37: 4
A38: Fond Du Lac | B38: 5 | F38: NTT Duration Counter
A39: Forest | B39: 6 | F39: =Duration!G15 -> 1
A40: Grant | B40: 7
A41: Green | B41: 8 | F41: From what I can tell, NTT is counting months by ignoring the days entirely, and inclusively counting the months between begin and end date, for example:
A42: Green Lake | B42: 9 | F42: 10/31/2019 to 4/1/2020 is equal to 7 months, even though in reality, its really more like 5 months of coverage, verified on website 10/11/2019
A43: Iowa | B43: 10
A44: Iron
A45: Jackson
A46: Jefferson
A47: Juneau | B47: ACH Billing
A48: Kenosha
A49: Kewaunee | B49: Yes
A50: La Crosse | B50: No
A51: Lafayette
A52: Langlade
A53: Lincoln
A54: Manitowoc
A55: Marathon
A56: Marinette
A57: Marquette
A58: Menominee
A59: Milwaukee
A60: Monroe
A61: Oconto
A62: Oneida
A63: Outagamie
A64: Ozaukee
A65: Pepin
A66: Pierce
A67: Polk
A68: Portage
A69: Price
A70: Racine
A71: Richland
A72: Rock
A73: Rusk
A74: Saint Croix
A75: Sauk
A76: Sawyer
A77: Shawano
A78: Sheboygan
A79: Taylor
A80: Trempealeau
A81: Vernon
A82: Vilas
A83: Walworth
A84: Washburn
A85: Washington
A86: Waukesha
A87: Waupaca
A88: Waushara
A89: Winnebago
A90: Wood

Sheet Calculations (hidden)
B5: Base | E5: Trend | H5: Benefit Relativities | K5: Age/Gender Table | Q5: Duration | T5: Area
B7: Eff Date | C7: Factor | E7: Eff Date | F7: Factor | H7: Plan ID | I7: Factor | K7: Lookup Key | L7: Age | M7: Male | N7: Female | O7: Dep | Q7: Time | R7: Factor | T7: Network | U7: County | V7: Factor | X7: Age | Y7: Male | Z7: Female | AA7: Dep | AD7: Effective Date | AE7: ='WPS Quote'!D20 -> 00:00:00
B8: 2026-01-01 | C8: 164.46 | E8: 2026-01-01 | F8: 1 | H8: 81974ST0000001 | I8: 1.4083 | K8: 0 | L8: 0 - 24 | M8: 1.1406 | N8: 1 | O8: 0.5 | Q8: <= 6 Months | R8: 0.8 | T8: Statewide | U8: Adams | V8: 1.015 | X8: 0 | Y8: 1.1406 | Z8: 1 | AA8: 0.5 | AD8: County | AE8: ='WPS Quote'!D24 -> 0
E9: 2026-07-01 | F9: 1.04 | H9: 81974ST0000006 | I9: 1.2949 | K9: 25 | L9: 25 - 29 | M9: 1.0613 | N9: 1.087 | O9: 0.5 | Q9: > 6 Months | R9: 1 | T9: Statewide | U9: Ashland | V9: 1.045 | X9: 1 | Y9: 1.1406 | Z9: 1 | AA9: 0.5 | AD9: ACH Billing | AE9: ='WPS Quote'!K18 -> 0
E10: 2027-01-01 | F10: 1.0816 | H10: 81974ST0000002 | I10: 1.0708 | K10: 30 | L10: 30 - 34 | M10: 1.077 | N10: 1.2131 | O10: 0.5 | T10: Statewide | U10: Barron | V10: 1.045 | X10: 2 | Y10: 1.1406 | Z10: 1 | AA10: 0.5
E11: 2027-07-01 | F11: 1.1249 | H11: 81974ST0000007 | I11: 1.0359 | K11: 35 | L11: 35 - 39 | M11: 1.1049 | N11: 1.298 | O11: 0.5 | T11: Statewide | U11: Bayfield | V11: 1.045 | X11: 3 | Y11: 1.1406 | Z11: 1 | AA11: 0.5 | AM11: 1500 25% | AN11: 2500 0% | AO11: 2500 25% | AP11: 5000 0% | AQ11: 5000 25% | AR11: 7500 0% | AS11: 7500 25% | AT11: 10000 0% | AU11: 10000 25% | AV11: 15000 25%
H12: 81974ST0000003 | I12: 0.8563 | K12: 40 | L12: 40 - 44 | M12: 1.4229 | N12: 1.5177 | O12: 0.5 | T12: Statewide | U12: Brown | V12: 1.01 | X12: 4 | Y12: 1.1406 | Z12: 1 | AA12: 0.5 | AE12: Use in Calc? | AF12: DOB | AG12: Age | AH12: Gender | AI12: Base Rate | AJ12: Trend | AK12: Duration | AL12: Area | AM12: Rate | AN12: Rate | AO12: Rate | AP12: Rate | AQ12: Rate | AR12: Rate | AS12: Rate | AT12: Rate | AU12: Rate | AV12: Rate
H13: 81974ST0000009 | I13: 0.8028 | K13: 45 | L13: 45 - 49 | M13: 1.76 | N13: 1.8425 | O13: 0.5 | T13: Statewide | U13: Buffalo | V13: 1.08 | X13: 5 | Y13: 1.1406 | Z13: 1 | AA13: 0.5 | AD13: Applicant | AE13: =IF('WPS Quote'!H18="",0,1) -> 0 | AF13: =IF('WPS Quote'!H20="", "N/A",'WPS Quote'!H20) -> N/A | AG13: =IF(MONTH(AE7)<MONTH(AF13),YEAR(AE7)-YEAR(AF13)-1,IF(MONTH(AE7)>MONTH(AF13),YEAR(AE7)-YEAR(AF13),IF(DAY(AE7)<DAY(AF13),YEAR(AE7)-YEAR(AF13)-1,YEAR(AE7)-YEAR(AF13)))) ->  | AH13: =IF('WPS Quote'!H22="", "N/A",'WPS Quote'!H22) -> N/A | AI13: =ROUND(C8*IF(AH13="Male",VLOOKUP(AG13,$K$8:$N$16,3),IF(AH13="Female",VLOOKUP(AG13,$K$8:$N$16,4),"N/A")),2) ->  | AJ13: =VLOOKUP($AE$7,$E$8:$F$11,2) ->  | AK13: =IF('WPS Benefits and Selection'!$F$39>6,$R$9,$R$8) -> 0.8 | AL13: =VLOOKUP(AE8,Calculations!$U$8:$V$79,2,FALSE) ->  | AM13: =ROUND(ROUND($AI$13*$AJ$13*$AK$13*$I$8,2)*$AL$13,2) ->  | AN13: =ROUND(ROUND($AI$13*$AJ$13*$AK$13*$I$9,2)*$AL$13,2) ->  | AO13: =ROUND(ROUND($AI$13*$AJ$13*$AK$13*$I$10,2)*$AL$13,2) ->  | AP13: =ROUND(ROUND($AI$13*$AJ$13*$AK$13*$I$11,2)*$AL$13,2) ->  | AQ13: =ROUND(ROUND($AI$13*$AJ$13*$AK$13*$I$12,2)*$AL$13,2) ->  | AR13: =ROUND(ROUND($AI$13*$AJ$13*$AK$13*$I$13,2)*$AL$13,2) ->  | AS13: =ROUND(ROUND($AI$13*$AJ$13*$AK$13*$I$14,2)*$AL$13,2) ->  | AT13: =ROUND(ROUND($AI$13*$AJ$13*$AK$13*$I$15,2)*$AL$13,2) ->  | AU13: =ROUND(ROUND($AI$13*$AJ$13*$AK$13*$I$16,2)*$AL$13,2) ->  | AV13: =ROUND(ROUND($AI$13*$AJ$13*$AK$13*$I$17,2)*$AL$13,2) -> 
H14: 81974ST0000010 | I14: 0.6639 | K14: 50 | L14: 50 - 54 | M14: 2.2878 | N14: 2.289 | O14: 0.5 | T14: Statewide | U14: Burnett | V14: 0.965 | X14: 6 | Y14: 1.1406 | Z14: 1 | AA14: 0.5 | AD14: Spouse | AE14: =IF(OR('WPS Quote'!H18="Applicant & Spouse",'WPS Quote'!H18="Family"),1,0) -> 0 | AF14: =IF('WPS Quote'!K20="", "N/A",'WPS Quote'!K20) -> N/A | AG14: =IF(MONTH(AE7)<MONTH(AF14),YEAR(AE7)-YEAR(AF14)-1,IF(MONTH(AE7)>MONTH(AF14),YEAR(AE7)-YEAR(AF14),IF(DAY(AE7)<DAY(AF14),YEAR(AE7)-YEAR(AF14)-1,YEAR(AE7)-YEAR(AF14)))) ->  | AH14: =IF('WPS Quote'!K22="", "N/A",'WPS Quote'!K22) -> N/A | AI14: =ROUND(C8*IF(AH14="Male",VLOOKUP(AG14,$K$8:$N$16,3),IF(AH14="Female",VLOOKUP(AG14,$K$8:$N$16,4),"N/A")),2) ->  | AJ14: =VLOOKUP($AE$7,$E$8:$F$11,2) ->  | AK14: =IF('WPS Benefits and Selection'!$F$39>6,$R$9,$R$8) -> 0.8 | AL14: =VLOOKUP(AE8,Calculations!$U$8:$V$79,2,FALSE) ->  | AM14: =ROUND(ROUND($AI$14*$AJ$14*$AK$14*$I$8,2)*$AL$14,2) ->  | AN14: =ROUND(ROUND($AI$14*$AJ$14*$AK$14*$I$9,2)*$AL$14,2) ->  | AO14: =ROUND(ROUND($AI$14*$AJ$14*$AK$14*$I$10,2)*$AL$14,2) ->  | AP14: =ROUND(ROUND($AI$14*$AJ$14*$AK$14*$I$11,2)*$AL$14,2) ->  | AQ14: =ROUND(ROUND($AI$14*$AJ$14*$AK$14*$I$12,2)*$AL$14,2) ->  | AR14: =ROUND(ROUND($AI$14*$AJ$14*$AK$14*$I$13,2)*$AL$14,2) ->  | AS14: =ROUND(ROUND($AI$14*$AJ$14*$AK$14*$I$14,2)*$AL$14,2) ->  | AT14: =ROUND(ROUND($AI$14*$AJ$14*$AK$14*$I$15,2)*$AL$14,2) ->  | AU14: =ROUND(ROUND($AI$14*$AJ$14*$AK$14*$I$16,2)*$AL$14,2) ->  | AV14: =ROUND(ROUND($AI$14*$AJ$14*$AK$14*$I$17,2)*$AL$14,2) -> 
H15: 81974ST0000008 | I15: 0.7574 | K15: 55 | L15: 55 - 59 | M15: 3.1148 | N15: 2.7699 | O15: 0.5 | T15: Statewide | U15: Calumet | V15: 0.93 | X15: 7 | Y15: 1.1406 | Z15: 1 | AA15: 0.5 | AD15: # of Dependents | AE15: =IF(OR('WPS Quote'!H18="Applicant & Dependents",'WPS Quote'!H18="Family"),1,0) -> 0 | AF15: =IF('WPS Quote'!H24="", "N/A",'WPS Quote'!H24) -> N/A | AI15: =ROUND(C8*O8,2) -> 82.23 | AJ15: =VLOOKUP($AE$7,$E$8:$F$11,2) ->  | AK15: =IF('WPS Benefits and Selection'!$F$39>6,$R$9,$R$8) -> 0.8 | AL15: =VLOOKUP('WPS Quote'!$D$24,Calculations!$U$8:$V$79,2,FALSE) ->  | AM15: =ROUND(ROUND($AI$15*$AJ$15*$AK$15*$I$8,2)*$AL$15,2)*$AF$15 ->  | AN15: =ROUND(ROUND($AI$15*$AJ$15*$AK$15*$I$9,2)*$AL$15,2)*$AF$15 ->  | AO15: =ROUND(ROUND($AI$15*$AJ$15*$AK$15*$I$10,2)*$AL$15,2)*$AF$15 ->  | AP15: =ROUND(ROUND($AI$15*$AJ$15*$AK$15*$I$11,2)*$AL$15,2)*$AF$15 ->  | AQ15: =ROUND(ROUND($AI$15*$AJ$15*$AK$15*$I$12,2)*$AL$15,2)*$AF$15 ->  | AR15: =ROUND(ROUND($AI$15*$AJ$15*$AK$15*$I$13,2)*$AL$15,2)*$AF$15 ->  | AS15: =ROUND(ROUND($AI$15*$AJ$15*$AK$15*$I$14,2)*$AL$15,2)*$AF$15 ->  | AT15: =ROUND(ROUND($AI$15*$AJ$15*$AK$15*$I$15,2)*$AL$15,2)*$AF$15 ->  | AU15: =ROUND(ROUND($AI$15*$AJ$15*$AK$15*$I$16,2)*$AL$15,2)*$AF$15 ->  | AV15: =ROUND(ROUND($AI$15*$AJ$15*$AK$15*$I$17,2)*$AL$15,2)*$AF$15 -> 
H16: 81974ST0000004 | I16: 0.6264 | K16: 60 | L16: 60 - 120 | M16: 3.8179 | N16: 3.1572 | O16: 0.5 | T16: Statewide | U16: Chippewa | V16: 1.14 | X16: 8 | Y16: 1.1406 | Z16: 1 | AA16: 0.5 | AM16: =ROUND(SUMIF($AE$13:$AE$15,1,AM13:AM15)*IF($AE$9="Yes",0.98,1),2) -> 0 | AN16: =ROUND(SUMIF($AE$13:$AE$15,1,AN13:AN15)*IF($AE$9="Yes",0.98,1),2) -> 0 | AO16: =ROUND(SUMIF($AE$13:$AE$15,1,AO13:AO15)*IF($AE$9="Yes",0.98,1),2) -> 0 | AP16: =ROUND(SUMIF($AE$13:$AE$15,1,AP13:AP15)*IF($AE$9="Yes",0.98,1),2) -> 0 | AQ16: =ROUND(SUMIF($AE$13:$AE$15,1,AQ13:AQ15)*IF($AE$9="Yes",0.98,1),2) -> 0 | AR16: =ROUND(SUMIF($AE$13:$AE$15,1,AR13:AR15)*IF($AE$9="Yes",0.98,1),2) -> 0 | AS16: 0 | AT16: 0 | AU16: 0 | AV16: 0
H17: 81974ST0000005 | I17: 0.4926 | T17: Statewide | U17: Clark | V17: 1.02 | X17: 9 | Y17: 1.1406 | Z17: 1 | AA17: 0.5
T18: Statewide | U18: Columbia | V18: 1.045 | X18: 10 | Y18: 1.1406 | Z18: 1 | AA18: 0.5
T19: Statewide | U19: Crawford | V19: 1.05 | X19: 11 | Y19: 1.1406 | Z19: 1 | AA19: 0.5
B20: Under Age 18? | T20: Statewide | U20: Dane | V20: 1.08 | X20: 12 | Y20: 1.1406 | Z20: 1 | AA20: 0.5
B21: Eff Date | C21: =DATE(YEAR('WPS Quote'!$D$20), MONTH('WPS Quote'!$D$20), DAY('WPS Quote'!$D$20)) -> 00:00:00 | T21: Statewide | U21: Dodge | V21: 1.03 | X21: 13 | Y21: 1.1406 | Z21: 1 | AA21: 0.5
B22: Age 18 | C22: =EDATE(DATE(YEAR('WPS Quote'!$D$20), MONTH('WPS Quote'!$D$20), DAY('WPS Quote'!$D$20)),-216) ->  | T22: Statewide | U22: Door | V22: 1.005 | X22: 14 | Y22: 1.1406 | Z22: 1 | AA22: 0.5
T23: Statewide | U23: Douglas | V23: 1.06 | X23: 15 | Y23: 1.1406 | Z23: 1 | AA23: 0.5
B24: Under Age 26? | T24: Statewide | U24: Dunn | V24: 1.015 | X24: 16 | Y24: 1.1406 | Z24: 1 | AA24: 0.5
B25: Eff Date | C25: =DATE(YEAR('WPS Quote'!$D$20), MONTH('WPS Quote'!$D$20), DAY('WPS Quote'!$D$20)) -> 00:00:00 | T25: Statewide | U25: Eau Claire | V25: 1.13 | X25: 17 | Y25: 1.1406 | Z25: 1 | AA25: 0.5
B26: Age 26 | C26: =EDATE(DATE(YEAR('WPS Quote'!$D$20), MONTH('WPS Quote'!$D$20), DAY('WPS Quote'!$D$20)),-312) ->  | T26: Statewide | U26: Florence | V26: 1.065 | X26: 18 | Y26: 1.1406 | Z26: 1 | AA26: 0.5
T27: Statewide | U27: Fond Du Lac | V27: 1.04 | X27: 19 | Y27: 1.1406 | Z27: 1 | AA27: 0.5
T28: Statewide | U28: Forest | V28: 0.96 | X28: 20 | Y28: 1.1406 | Z28: 1 | AA28: 0.5
T29: Statewide | U29: Grant | V29: 1.04 | X29: 21 | Y29: 1.1406 | Z29: 1 | AA29: 0.5
T30: Statewide | U30: Green | V30: 1.18 | X30: 22 | Y30: 1.1406 | Z30: 1 | AA30: 0.5
T31: Statewide | U31: Green Lake | V31: 1.02 | X31: 23 | Y31: 1.1406 | Z31: 1 | AA31: 0.5
T32: Statewide | U32: Iowa | V32: 1.015 | X32: 24 | Y32: 1.1406 | Z32: 1 | AA32: 0.5
T33: Statewide | U33: Iron | V33: 1.025 | X33: 25 | Y33: 1.0613 | Z33: 1.087 | AA33: 0.5
T34: Statewide | U34: Jackson | V34: 1.05 | X34: 26 | Y34: 1.0613 | Z34: 1.087 | AA34: 0.5
T35: Statewide | U35: Jefferson | V35: 1.06 | X35: 27 | Y35: 1.0613 | Z35: 1.087 | AA35: 0.5
T36: Statewide | U36: Juneau | V36: 1.02 | X36: 28 | Y36: 1.0613 | Z36: 1.087 | AA36: 0.5
T37: Statewide | U37: Kenosha | V37: 0.975 | X37: 29 | Y37: 1.0613 | Z37: 1.087 | AA37: 0.5
T38: Statewide | U38: Kewaunee | V38: 0.98 | X38: 30 | Y38: 1.077 | Z38: 1.2131 | AA38: 0.5
T39: Statewide | U39: La Crosse | V39: 1.045 | X39: 31 | Y39: 1.077 | Z39: 1.2131 | AA39: 0.5
T40: Statewide | U40: Lafayette | V40: 1.045 | X40: 32 | Y40: 1.077 | Z40: 1.2131 | AA40: 0.5
T41: Statewide | U41: Langlade | V41: 0.945 | X41: 33 | Y41: 1.077 | Z41: 1.2131 | AA41: 0.5
T42: Statewide | U42: Lincoln | V42: 1.005 | X42: 34 | Y42: 1.077 | Z42: 1.2131 | AA42: 0.5
T43: Statewide | U43: Manitowoc | V43: 1.01 | X43: 35 | Y43: 1.1049 | Z43: 1.298 | AA43: 0.5
T44: Statewide | U44: Marathon | V44: 1.035 | X44: 36 | Y44: 1.1049 | Z44: 1.298 | AA44: 0.5
T45: Statewide | U45: Marinette | V45: 1.04 | X45: 37 | Y45: 1.1049 | Z45: 1.298 | AA45: 0.5
T46: Statewide | U46: Marquette | V46: 0.99 | X46: 38 | Y46: 1.1049 | Z46: 1.298 | AA46: 0.5
T47: Statewide | U47: Menominee | V47: 1.04 | X47: 39 | Y47: 1.1049 | Z47: 1.298 | AA47: 0.5
T48: Statewide | U48: Milwaukee | V48: 1 | X48: 40 | Y48: 1.4229 | Z48: 1.5177 | AA48: 0.5
T49: Statewide | U49: Monroe | V49: 1.07 | X49: 41 | Y49: 1.4229 | Z49: 1.5177 | AA49: 0.5
T50: Statewide | U50: Oconto | V50: 1.015 | X50: 42 | Y50: 1.4229 | Z50: 1.5177 | AA50: 0.5
T51: Statewide | U51: Oneida | V51: 1.015 | X51: 43 | Y51: 1.4229 | Z51: 1.5177 | AA51: 0.5
T52: Statewide | U52: Outagamie | V52: 0.94 | X52: 44 | Y52: 1.4229 | Z52: 1.5177 | AA52: 0.5
T53: Statewide | U53: Ozaukee | V53: 0.98 | X53: 45 | Y53: 1.76 | Z53: 1.8425 | AA53: 0.5
T54: Statewide | U54: Pepin | V54: 1.045 | X54: 46 | Y54: 1.76 | Z54: 1.8425 | AA54: 0.5
T55: Statewide | U55: Pierce | V55: 1.035 | X55: 47 | Y55: 1.76 | Z55: 1.8425 | AA55: 0.5
T56: Statewide | U56: Polk | V56: 0.965 | X56: 48 | Y56: 1.76 | Z56: 1.8425 | AA56: 0.5
T57: Statewide | U57: Portage | V57: 1.02 | X57: 49 | Y57: 1.76 | Z57: 1.8425 | AA57: 0.5
T58: Statewide | U58: Price | V58: 1.015 | X58: 50 | Y58: 2.2878 | Z58: 2.289 | AA58: 0.5
T59: Statewide | U59: Racine | V59: 0.99 | X59: 51 | Y59: 2.2878 | Z59: 2.289 | AA59: 0.5
T60: Statewide | U60: Richland | V60: 1.04 | X60: 52 | Y60: 2.2878 | Z60: 2.289 | AA60: 0.5
T61: Statewide | U61: Rock | V61: 1.085 | X61: 53 | Y61: 2.2878 | Z61: 2.289 | AA61: 0.5
T62: Statewide | U62: Rusk | V62: 1.01 | X62: 54 | Y62: 2.2878 | Z62: 2.289 | AA62: 0.5
T63: Statewide | U63: Saint Croix | V63: 1.025 | X63: 55 | Y63: 3.1148 | Z63: 2.7699 | AA63: 0.5
T64: Statewide | U64: Sauk | V64: 1.09 | X64: 56 | Y64: 3.1148 | Z64: 2.7699 | AA64: 0.5
T65: Statewide | U65: Sawyer | V65: 1.045 | X65: 57 | Y65: 3.1148 | Z65: 2.7699 | AA65: 0.5
T66: Statewide | U66: Shawano | V66: 0.975 | X66: 58 | Y66: 3.1148 | Z66: 2.7699 | AA66: 0.5
T67: Statewide | U67: Sheboygan | V67: 0.955 | X67: 59 | Y67: 3.1148 | Z67: 2.7699 | AA67: 0.5
T68: Statewide | U68: Taylor | V68: 1.015 | X68: 60 | Y68: 3.8179 | Z68: 3.1572 | AA68: 0.5
T69: Statewide | U69: Trempealeau | V69: 1.065 | X69: 61 | Y69: 3.8179 | Z69: 3.1572 | AA69: 0.5
T70: Statewide | U70: Vernon | V70: 1.055 | X70: 62 | Y70: 3.8179 | Z70: 3.1572 | AA70: 0.5
T71: Statewide | U71: Vilas | V71: 0.965 | X71: 63 | Y71: 3.8179 | Z71: 3.1572 | AA71: 0.5
T72: Statewide | U72: Walworth | V72: 1.015 | X72: 64 | Y72: 3.8179 | Z72: 3.1572 | AA72: 0.5
T73: Statewide | U73: Washburn | V73: 1.045 | X73: 65 | Y73: 3.8179 | Z73: 3.1572 | AA73: 0.5
T74: Statewide | U74: Washington | V74: 0.975 | X74: 66 | Y74: 3.8179 | Z74: 3.1572 | AA74: 0.5
T75: Statewide | U75: Waukesha | V75: 1.01 | X75: 67 | Y75: 3.8179 | Z75: 3.1572 | AA75: 0.5
T76: Statewide | U76: Waupaca | V76: 0.94 | X76: 68 | Y76: 3.8179 | Z76: 3.1572 | AA76: 0.5
T77: Statewide | U77: Waushara | V77: 0.975 | X77: 69 | Y77: 3.8179 | Z77: 3.1572 | AA77: 0.5
T78: Statewide | U78: Winnebago | V78: 0.925 | X78: 70 | Y78: 3.8179 | Z78: 3.1572 | AA78: 0.5
T79: Statewide | U79: Wood | V79: 1.015 | X79: 71 | Y79: 3.8179 | Z79: 3.1572 | AA79: 0.5
X80: 72 | Y80: 3.8179 | Z80: 3.1572 | AA80: 0.5
X81: 73 | Y81: 3.8179 | Z81: 3.1572 | AA81: 0.5
X82: 74 | Y82: 3.8179 | Z82: 3.1572 | AA82: 0.5
X83: 75 | Y83: 3.8179 | Z83: 3.1572 | AA83: 0.5
X84: 76 | Y84: 3.8179 | Z84: 3.1572 | AA84: 0.5
X85: 77 | Y85: 3.8179 | Z85: 3.1572 | AA85: 0.5
X86: 78 | Y86: 3.8179 | Z86: 3.1572 | AA86: 0.5
X87: 79 | Y87: 3.8179 | Z87: 3.1572 | AA87: 0.5
X88: 80 | Y88: 3.8179 | Z88: 3.1572 | AA88: 0.5
X89: 81 | Y89: 3.8179 | Z89: 3.1572 | AA89: 0.5
X90: 82 | Y90: 3.8179 | Z90: 3.1572 | AA90: 0.5
X91: 83 | Y91: 3.8179 | Z91: 3.1572 | AA91: 0.5
X92: 84 | Y92: 3.8179 | Z92: 3.1572 | AA92: 0.5
X93: 85 | Y93: 3.8179 | Z93: 3.1572 | AA93: 0.5
X94: 86 | Y94: 3.8179 | Z94: 3.1572 | AA94: 0.5
X95: 87 | Y95: 3.8179 | Z95: 3.1572 | AA95: 0.5
X96: 88 | Y96: 3.8179 | Z96: 3.1572 | AA96: 0.5
X97: 89 | Y97: 3.8179 | Z97: 3.1572 | AA97: 0.5
X98: 90 | Y98: 3.8179 | Z98: 3.1572 | AA98: 0.5
X99: 91 | Y99: 3.8179 | Z99: 3.1572 | AA99: 0.5
X100: 92 | Y100: 3.8179 | Z100: 3.1572 | AA100: 0.5
X101: 93 | Y101: 3.8179 | Z101: 3.1572 | AA101: 0.5
X102: 94 | Y102: 3.8179 | Z102: 3.1572 | AA102: 0.5
X103: 95 | Y103: 3.8179 | Z103: 3.1572 | AA103: 0.5
X104: 96 | Y104: 3.8179 | Z104: 3.1572 | AA104: 0.5
X105: 97 | Y105: 3.8179 | Z105: 3.1572 | AA105: 0.5
X106: 98 | Y106: 3.8179 | Z106: 3.1572 | AA106: 0.5
X107: 99 | Y107: 3.8179 | Z107: 3.1572 | AA107: 0.5
X108: 100 | Y108: 3.8179 | Z108: 3.1572 | AA108: 0.5
X109: 101 | Y109: 3.8179 | Z109: 3.1572 | AA109: 0.5
X110: 102 | Y110: 3.8179 | Z110: 3.1572 | AA110: 0.5
X111: 103 | Y111: 3.8179 | Z111: 3.1572 | AA111: 0.5
X112: 104 | Y112: 3.8179 | Z112: 3.1572 | AA112: 0.5
X113: 105 | Y113: 3.8179 | Z113: 3.1572 | AA113: 0.5
X114: 106 | Y114: 3.8179 | Z114: 3.1572 | AA114: 0.5
X115: 107 | Y115: 3.8179 | Z115: 3.1572 | AA115: 0.5
X116: 108 | Y116: 3.8179 | Z116: 3.1572 | AA116: 0.5
X117: 109 | Y117: 3.8179 | Z117: 3.1572 | AA117: 0.5
X118: 110 | Y118: 3.8179 | Z118: 3.1572 | AA118: 0.5
X119: 111 | Y119: 3.8179 | Z119: 3.1572 | AA119: 0.5
X120: 112 | Y120: 3.8179 | Z120: 3.1572 | AA120: 0.5
X121: 113 | Y121: 3.8179 | Z121: 3.1572 | AA121: 0.5
X122: 114 | Y122: 3.8179 | Z122: 3.1572 | AA122: 0.5
X123: 115 | Y123: 3.8179 | Z123: 3.1572 | AA123: 0.5
X124: 116 | Y124: 3.8179 | Z124: 3.1572 | AA124: 0.5
X125: 117 | Y125: 3.8179 | Z125: 3.1572 | AA125: 0.5
X126: 118 | Y126: 3.8179 | Z126: 3.1572 | AA126: 0.5
X127: 119 | Y127: 3.8179 | Z127: 3.1572 | AA127: 0.5
X128: 120 | Y128: 3.8179 | Z128: 3.1572 | AA128: 0.5

Sheet Duration (hidden)
B1: Month | C1: Day | D1: Year | F1: Month Order | G1: Year | H1: Total Possible Days | I1: Accumulation | J1: Month Count
A2: Start Date | B2: =MONTH('WPS Quote'!D20) -> 1 | C2: =DAY('WPS Quote'!D20) -> 0 | D2: =YEAR('WPS Quote'!D20) -> 1900 | F2: =B2 -> 1 | G2: =D2 -> 1900 | H2: =IF(F2<>2,VLOOKUP(F2,$A$7:$B$18,2,FALSE),IF(AND(F2=2,OR(G2=2020, G2=2024,G2= 2028,G2= 2032,G2= 2036,G2=2040)),29,28)) -> 31 | I2: =H2 -> 31 | J2: 1
A3: End Date | B3: =MONTH('WPS Quote'!D22) -> 1 | C3: =DAY('WPS Quote'!D22) -> 0 | D3: =YEAR('WPS Quote'!D22) -> 1900 | F3: =IF(F2+1=13,1,F2+1) -> 2 | G3: =IF(F3=1,G2+1,G2) -> 1900 | H3: 28 | I3: =H3+I2 -> 59 | J3: 2
F4: =IF(F3+1=13,1,F3+1) -> 3 | G4: =IF(F4=1,G3+1,G3) -> 1900 | H4: 31 | I4: =H4+I3 -> 90 | J4: 3
A5: Contract Length: | C5: =DATE(D3,B3,C3)-DATE(D2,B2,C2) +1 -> 1 | F5: 4 | G5: 1900 | H5: 30 | I5: 120 | J5: 4
F6: 5 | G6: 1900 | H6: 31 | I6: 151 | J6: 5
A7: 1 | B7: 31 | F7: 6 | G7: 1900 | H7: 30 | I7: 181 | J7: 6
A8: 2 | B8: 28/29 | F8: 7 | G8: 1900 | H8: 31 | I8: 212 | J8: 7
A9: 3 | B9: 31 | F9: 8 | G9: 1900 | H9: 31 | I9: 243 | J9: 8
A10: 4 | B10: 30 | F10: 9 | G10: 1900 | H10: 30 | I10: 273 | J10: 9
A11: 5 | B11: 31 | F11: 10 | G11: 1900 | H11: 31 | I11: 304 | J11: 10
A12: 6 | B12: 30 | F12: 11 | G12: 1900 | H12: 30 | I12: 334 | J12: 11
A13: 7 | B13: 31 | F13: 12 | G13: 1900 | H13: 31 | I13: 365 | J13: 12
A14: 8 | B14: 31
A15: 9 | B15: 30 | F15: Total Month Count: | G15: =IF(AND(B2=B3,D2=D3),1,_xlfn.IFNA(VLOOKUP(C5,$I$2:$J$13,2,FALSE),VLOOKUP(C5,$I$2:$J$13,2) +1)) -> 1
A16: 10 | B16: 31
A17: 11 | B17: 30
A18: 12 | B18: 31
A20: All the calculations here are based on the belief that NTT starts the day counter with how many days are in the first month.
A21: For example, if the start date was 3/15/2021, then, since March has 31 days, the first month will be 31 days, at 32 days, the month
A22: count will be 2, until the next 30 days are satisfied (since April is the next month), at 62 days, the count will be 3, etc….
A28: This currently cant handle starting a 28 or 29 policy that crosses months
A29: This has always been a problem that hasn’t been brought up.
